bitfinex-derivatives/quotes_ETHF0:USTF0_20240905
["timestamp","ask_amount","ask_price","bid_price","bid_amount"]
[1725528762836,0.4451,2395.7,2395.4,3.2078]
[1725528763033,0.41747,2395.5,2395.3,0.87394593]
[1725528763333,0.41747,2395.5,2395.3,0.42374593]
[1725528763535,0.4377,2395.4,2395.3,0.42374593]
[1725528765641,0.4451,2395.7,2395.6,0.41745]
[1725528767033,0.4451,2395.7,2395.3,2.89626593]
[1725528767237,0.4451,2395.7,2395.3,6.10406593]
[1725528767238,0.86254,2395.7,2395.3,6.10406593]
[1725528767636,0.46486593,2395.8,2395.3,6.10406593]
[1725528767637,5.93e-06,2395.8,2395.7,0.41743]
[1725528767938,3.62508,2396.6,2396.4,0.4173]
[1725528768645,3.62508,2396.6,2396.3,0.41732]
[1725528768936,0.4173,2396.5,2396.3,0.41732]
[1725528769336,3.62509,2396.6,2396.4,0.41731]
[1725528769843,7.79789,2396.6,2396.4,0.41731]
[1725528770141,3.2078,2396.6,2396.5,0.41729]
[1725528770538,3.62507,2396.6,2396.4,0.4173]
[1725528770841,3.2078,2396.6,2396.5,0.41729]
[1725528772955,0.41731,2396.4,2396.2,0.41734]
[1725528773144,4.1728,2396.3,2396.2,0.41734]
[1725528773333,0.41734,2396.2,2396.0,0.41736]
[1725528773533,3.2078,2396.6,2396.0,2.89]
[1725528773736,3.6587,2396.6,2396.5,0.41729]
[1725528774344,8.24877,2396.6,2396.4,0.4173]
[1725528774530,4.50837,2396.6,2396.4,0.4173]
[1725528774731,8.68117,2396.6,2396.4,0.4173]
[1725528776036,8.2639,2396.6,2396.1,3.2078]
[1725528776234,0.41732,2396.4,2395.9,3.2078]
[1725528776440,4.0911,2396.6,2395.9,3.2078]
[1725528776638,0.41739,2396.0,2395.8,0.41741]
[1725528776946,0.4515,2395.9,2395.8,0.41741]
[1725528777243,0.8809,2395.9,2395.8,0.41741]
[1725528777541,4.0887,2395.9,2395.8,0.41741]
[1725528777842,4.0887,2395.9,2395.5,2.89]
[1725528778046,0.41746,2395.6,2395.3,0.42375593]
[1725528778346,3.62526,2395.6,2395.3,0.42375593]
[1725528780142,3.2078,2395.6,2395.4,0.41748]
[1725528780543,3.2078,2395.6,2395.5,0.41747]
[1725528780745,0.41742,2395.8,2395.5,0.41747]
[1725528781545,0.41742,2395.8,2395.6,0.41745]
[1725528782339,0.8809,2395.9,2395.8,0.41741]
[1725528782746,0.4515,2395.9,2395.8,0.41741]
[1725528783154,4.6251,2395.9,2395.4,0.4257]
[1725528783446,0.86891,2395.9,2395.6,0.41744]
[1725528783668,0.4515,2395.9,2395.7,0.41743]
[1725528783844,4.0767,2395.9,2395.7,0.41743]
[1725528784245,3.6593,2395.9,2395.7,0.41743]
[1725528784546,3.6593,2395.9,2395.8,0.41741]
[1725528785848,3.6593,2395.9,2395.6,0.4305]
[1725528785849,0.4269,2396.1,2396.0,0.41738]
[1725528786742,0.4269,2396.1,2395.6,4.2805]
[1725528786743,7.7466,2396.2,2396.1,0.41736]
[1725528787841,0.4278,2396.2,2396.1,0.41736]
[1725528788454,0.8692,2396.5,2396.3,0.41732]
[1725528788658,0.464,2396.5,2396.4,0.41731]
[1725528789661,0.464,2396.5,2396.3,0.41732]
[1725528789956,0.8813,2396.5,2396.3,0.41732]
[1725528790847,0.8813,2396.5,2396.1,0.4465]
[1725528791051,0.41731,2396.4,2395.9,0.429]
[1725528791362,0.85922,2396.4,2396.2,0.41734]
[1725528791663,3.2078,2396.3,2395.7,1.09046052]
[1725528791957,3.2078,2396.3,2396.0,0.41737]
[1725528791958,0.41736,2396.1,2396.0,0.41737]
[1725528792855,0.41741,2395.9,2395.7,0.84202]
[1725528793047,3.6495,2396.0,2395.8,0.4174]
[1725528793247,0.4174,2395.9,2395.8,0.4174]
[1725528793655,4.06689,2396.0,2395.8,0.4174]
[1725528793954,0.85909,2396.0,2395.9,0.4174]
[1725528794152,0.85909,2396.0,2395.8,0.4174]
[1725528794153,5.03269,2396.0,2395.8,0.4174]
[1725528794355,0.85909,2396.0,2395.8,0.4174]
[1725528794560,0.4174,2395.9,2395.8,0.4174]
[1725528796658,4.06689,2396.0,2395.8,0.4174]
[1725528797659,0.4174,2395.9,2395.8,0.4174]
[1725528801058,0.41741,2395.8,2395.7,0.41742]
[1725528801566,0.41748,2395.4,2395.3,0.00626593]
[1725528801864,1.04358,2395.7,2395.3,0.42376593]
[1725528801865,3.2078,2395.6,2395.3,0.42376593]
[1725528802054,0.41748,2395.4,2395.3,0.00626593]
[1725528802251,0.4377,2395.5,2395.3,0.00626593]
[1725528802560,3.2078,2395.6,2395.5,0.41747]
[1725528803064,3.2078,2395.9,2395.8,0.41741]
[1725528803657,3.2078,2395.9,2395.4,1.95846052]
[1725528803956,3.2078,2395.9,2395.8,0.41741]
[1725528805268,3.6252,2395.9,2395.7,0.41742]
[1725528805457,3.2078,2395.9,2395.7,0.41742]
[1725528805658,3.6252,2395.9,2395.7,0.41742]
[1725528806169,3.2078,2395.9,2395.8,0.41741]
[1725528808564,0.41742,2395.8,2395.5,0.41747]
[1725528808867,0.86432,2395.8,2395.6,0.41745]
[1725528810263,0.41743,2395.7,2395.6,0.41745]
[1725528810464,0.41743,2395.7,2395.5,0.41745]
[1725528810663,0.4427,2395.6,2395.5,0.41745]
[1725528811761,0.41748,2395.4,2395.3,0.00626593]
[1725528811965,4.35119,2395.4,2395.3,0.00626593]
[1725528812268,14.52559,2395.4,2395.3,0.00626593]
[1725528813060,10.59188,2395.4,2395.3,0.00626593]
[1725528813262,13.48188,2395.4,2395.3,0.00626593]
[1725528813569,8.52559,2395.4,2395.3,0.00626593]
[1725528814259,7.48188,2395.4,2395.3,0.00626593]
[1725528814659,8.52559,2395.4,2395.3,0.00626593]
[1725528814957,0.41754,2395.1,2394.9,0.41756]
[1725528815162,0.4334,2395.0,2394.9,0.41756]
[1725528815965,5.02616,2395.0,2394.8,0.41758]
[1725528816166,0.4334,2395.0,2394.9,0.41757]
[1725528816375,7.91616,2395.0,2394.7,0.42386593]
[1725528816569,3.74096,2395.0,2394.7,0.42386593]
[1725528817459,3.2078,2394.9,2394.7,0.42386593]
[1725528817968,3.2078,2394.9,2394.8,0.41759]
[1725528818278,0.4334,2395.0,2394.7,0.00626593]
[1725528818467,0.4334,2395.0,2394.8,0.41759]
[1725528819572,0.4334,2395.0,2394.9,0.41757]
[1725528820076,4.08729593,2395.2,2394.9,0.41757]
[1725528820272,0.41754,2395.1,2394.8,0.41758]
[1725528820871,0.41755,2395.0,2394.8,0.41758]
[1725528822066,0.41755,2395.0,2394.7,0.00626593]
[1725528822067,4.50988593,2395.2,2394.7,0.00626593]
[1725528822271,0.41754,2395.1,2394.9,0.41756]
[1725528822669,4.50989593,2395.2,2395.0,0.41755]
[1725528823971,0.41753,2395.1,2395.0,0.41755]
[1725528824374,0.41753,2395.1,2394.9,0.41756]
[1725528825482,4.50989593,2395.2,2395.0,0.41755]
[1725528826477,4.09236593,2395.2,2395.1,0.41753]
[1725528827880,0.88456593,2395.2,2395.1,0.41753]
[1725528828577,1.30208593,2395.2,2395.0,0.41754]
[1725528828780,0.88456593,2395.2,2395.1,0.41753]
[1725528828978,3.2078,2394.3,2393.7,0.622628]
[1725528829181,9.83963253,2395.1,2393.1,3.42015871]
[1725528829182,0.41775,2393.9,2393.1,3.42015871]
[1725528829378,3.2078,2393.2,2392.7,1.63585772]
[1725528829573,3.2078,2393.2,2392.2,1.76634]
[1725528829574,3.2078,2393.2,2392.8,0.9001]
[1725528829770,3.2078,2393.2,2393.1,3.13186461]
[1725528833685,3.2078,2393.2,2392.9,0.45446593]
[1725528833884,3.2078,2393.2,2393.0,3.13186461]
[1725528834084,3.2078,2393.2,2393.1,3.13186461]
[1725528835890,0.41789,2393.1,2392.9,0.00626593]
[1725528836279,8.72070066,2393.0,2391.8,8.047]
[1725528836483,3.2078,2392.3,2392.2,0.4439]
[1725528836678,3.2078,2392.6,2392.2,0.4439]
[1725528837179,3.2078,2392.6,2392.5,3.13186461]
[1725528841787,3.2078,2392.6,2392.3,0.00626593]
[1725528842088,8.31079122,2392.6,2392.3,3.13813054]
[1725528842387,3.62579,2392.6,2392.3,3.13813054]
[1725528842586,0.418,2392.5,2392.3,3.13813054]
[1725528843191,3.2078,2392.6,2392.4,3.13186461]
[1725528844292,3.2078,2392.6,2392.5,3.13186461]
[1725528844798,3.2078,2392.6,2392.3,0.42428593]
[1725528845088,3.62577,2392.6,2392.3,3.13813054]
[1725528846390,0.418,2392.5,2392.3,3.13813054]
[1725528846895,3.2078,2392.6,2392.3,3.55615054]
[1725528847287,3.62578,2392.6,2392.3,3.55615054]
[1725528847898,3.2078,2392.6,2392.5,3.54985461]
[1725528848488,3.2078,2392.6,2392.5,3.13186461]
[1725528849395,3.2078,2392.6,2392.5,3.54985461]
[1725528851392,3.2078,2392.6,2392.5,3.13186461]
[1725528851794,7.0578,2392.6,2392.5,3.13186461]
[1725528852000,7.0578,2392.6,2392.3,0.00626593]
[1725528852001,0.41799,2392.5,2392.3,0.42428593]
[1725528852201,0.41799,2392.5,2392.3,0.00626593]
[1725528852386,0.41799,2392.5,2392.3,3.13813054]
[1725528852591,0.418,2392.5,2392.3,3.13813054]
[1725528853186,0.418,2392.5,2392.3,3.55615054]
[1725528853390,0.418,2392.5,2392.3,3.13813054]
[1725528853889,2.89,2392.5,2392.3,3.55615054]
[1725528854089,3.30799,2392.5,2392.3,3.55615054]
[1725528854294,2.89,2392.5,2392.3,3.55615054]
[1725528854490,2.89,2392.5,2392.4,0.41801]
[1725528855793,2.89,2392.5,2392.3,0.42427593]
[1725528855996,2.89,2392.5,2392.3,3.13813054]
[1725528856294,2.89,2392.5,2392.3,3.55614054]
[1725528856495,2.89,2392.5,2392.4,0.41801]
[1725528857296,3.2078,2392.6,2392.5,0.41799]
[1725528857496,3.2078,2392.6,2392.5,3.54985461]
[1725528859396,6.0978,2392.6,2392.5,3.54985461]
[1725528859600,6.0978,2392.6,2392.5,3.13186461]
[1725528859796,6.0978,2392.6,2392.4,0.4581]
[1725528859994,6.0978,2392.6,2392.4,3.58996461]
[1725528860188,6.0978,2392.6,2392.4,4.00795461]
[1725528860189,6.51578,2392.6,2392.4,4.00795461]
[1725528860390,6.51578,2392.6,2392.4,4.00796461]
[1725528860801,6.51578,2392.6,2392.5,3.13186461]
[1725528862002,6.51578,2392.6,2392.3,0.00626593]
[1725528862003,0.418,2392.5,2392.3,0.42427593]
[1725528862205,0.418,2392.5,2392.4,3.13186461]
[1725528863202,0.418,2392.5,2392.3,0.42428593]
[1725528863398,0.418,2392.5,2392.3,3.55615054]
[1725528863704,0.41801,2392.4,2392.3,3.13813054]
[1725528864007,2.89,2392.4,2392.3,3.55615054]
[1725528864302,6.51578,2392.6,2392.4,0.418]
[1725528864506,0.41799,2392.5,2392.4,3.54987461]
[1725528864696,6.51578,2392.6,2392.4,3.54987461]
[1725528865705,6.0978,2392.6,2392.5,3.54985461]
[1725528866005,3.2078,2392.6,2392.5,3.54985461]
[1725528866707,6.0978,2392.6,2392.5,3.54985461]
[1725528867298,6.51577,2392.6,2392.5,3.13186461]
[1725528867499,6.51577,2392.6,2392.5,3.54985461]
[1725528867500,6.0978,2392.6,2392.5,3.54985461]
[1725528868404,6.51577,2392.6,2392.5,3.54985461]
[1725528869506,6.51577,2392.6,2392.5,3.13186461]
[1725528869902,6.0978,2392.6,2392.5,3.54985461]
[1725528870608,6.51577,2392.6,2392.5,3.54985461]
[1725528872910,6.0978,2392.6,2392.5,3.54985461]
[1725528873106,6.51577,2392.6,2392.5,3.54985461]
[1725528873504,6.0978,2392.6,2392.5,3.54985461]
[1725528874604,3.2078,2392.6,2392.5,3.54985461]
[1725528875112,3.2078,2392.6,2392.5,4.40325461]
[1725528875608,6.0978,2392.6,2392.5,4.40325461]
[1725528877006,6.51577,2392.6,2392.5,3.13186461]
[1725528877409,6.51577,2392.6,2392.5,3.54985461]
[1725528878012,6.51577,2392.6,2392.5,3.13186461]
[1725528879407,6.0978,2392.6,2392.5,3.54985461]
[1725528881716,6.51577,2392.6,2392.5,3.13186461]
[1725528881907,6.0978,2392.6,2392.3,0.00626593]
[1725528882103,0.418,2392.5,2392.4,3.54986461]
[1725528882802,3.6454,2392.6,2392.5,0.41799]
[1725528882803,4.06338,2392.6,2392.5,0.41799]
[1725528883004,3.62578,2392.6,2392.5,3.54985461]
[1725528883611,3.2078,2392.6,2392.5,3.54985461]
[1725528883812,3.2078,2392.6,2392.5,4.6404412]
[1725528884706,3.2078,2392.9,2392.8,0.41794]
[1725528885012,6.0978,2392.9,2392.8,0.41794]
[1725528885205,6.0978,2392.9,2392.7,1.09580947]
[1725528885206,6.51573,2392.9,2392.6,1.51376947]
[1725528885403,3.62573,2392.9,2392.7,3.13186461]
[1725528885903,0.41794,2392.8,2392.7,3.13186461]
[1725528886109,3.30794,2392.8,2392.7,3.13186461]
[1725528887313,3.30795,2392.8,2392.5,0.41798]
[1725528887515,3.2078,2392.6,2392.5,0.41798]
[1725528887712,3.2078,2392.6,2392.5,1.51378947]
[1725528888011,3.2078,2392.6,2392.5,3.13186461]
[1725528888210,3.2078,2392.6,2392.5,3.54985461]
[1725528889509,3.2078,2392.6,2392.5,0.41799]
[1725528889714,3.2078,2392.6,2392.5,3.54985461]
[1725528892109,3.2078,2392.6,2392.5,4.64566408]
[1725528893920,3.2078,2392.6,2392.5,4.59483461]
[1725528894123,3.2078,2392.9,2392.8,1.46279]
[1725528894325,3.2078,2392.9,2392.8,5.69008852]
[1725528894520,3.2078,2392.9,2392.8,11.69008852]
[1725528896224,3.2078,2392.9,2392.8,10.59465461]
[1725528896523,3.2078,2392.9,2392.8,4.59465461]
[1725528897222,3.2078,2392.9,2392.8,5.47425461]
[1725528897814,3.2078,2392.9,2392.8,12.56968852]
[1725528898223,3.2078,2392.9,2392.8,13.61453852]
[1725528898720,2.85511363,2392.9,2392.8,13.61453852]
[1725528899716,2.85511363,2392.9,2392.8,7.61453852]
[1725528899914,2.85511363,2392.9,2392.8,6.56968852]
[1725528900117,2.85511363,2392.9,2392.8,5.47425461]
[1725528901028,2.85511363,2392.9,2392.8,6.56968852]
[1725528901521,2.85511363,2392.9,2392.8,5.47425461]
[1725528901921,2.85511363,2392.9,2392.8,3.97780461]
[1725528903918,2.85511363,2392.9,2392.4,1.09543391]
[1725528904120,3.2078,2392.5,2392.4,0.41801]
[1725528904621,3.2078,2392.5,2392.4,3.54987461]
[1725528904923,3.2078,2392.5,2392.4,3.13186461]
[1725528905111,3.62579,2392.5,2392.4,3.13186461]
[1725528905724,3.2078,2392.5,2392.4,3.54987461]
[1725528908823,3.2078,2392.5,2392.4,4.59489461]
[1725528909022,3.2078,2392.5,2392.4,3.54987461]
[1725528910831,3.2078,2392.5,2392.4,3.13186461]
[1725528911014,6.0978,2392.5,2392.4,0.41801]
[1725528911231,3.2078,2392.5,2392.4,3.54987461]
[1725528920032,3.2078,2392.5,2392.4,4.59489461]
[1725528920329,3.2078,2393.1,2392.7,1.04489]
[1725528920541,3.2078,2393.1,2393.0,0.41788]
[1725528920726,3.2078,2393.1,2393.0,3.54974461]
[1725528921236,0.41792,2393.0,2392.5,1.09428001]
[1725528921534,3.2078,2392.8,2392.7,0.41795]
[1725528921929,4.05034,2392.8,2392.7,3.13186461]
[1725528922132,6.94034,2392.8,2392.4,1.55408001]
[1725528922330,6.94034,2392.8,2392.6,3.54982461]
[1725528922532,6.94034,2392.8,2392.7,3.54981461]
[1725528922732,6.5224,2392.8,2392.7,3.54981461]
[1725528922938,6.94034,2392.8,2392.6,0.41796]
[1725528923137,0.41796,2392.7,2392.6,3.13186461]
[1725528923340,0.418,2392.5,2392.3,0.42427593]
[1725528923537,6.5486,2392.4,2392.3,3.55614054]
[1725528923739,6.9797,2392.4,2392.3,3.55614054]
[1725528924735,3.2078,2392.4,2392.3,3.55614054]
[1725528925332,4.0733,2392.7,2392.6,0.41797]
[1725528925537,4.0733,2392.7,2392.6,3.54983461]
[1725528927741,4.0733,2392.7,2392.4,0.8874]
[1725528927937,4.0733,2392.7,2392.6,3.54983461]
[1725528928445,4.49125,2392.7,2392.6,0.41797]
[1725528928646,4.49125,2392.7,2392.4,0.4428]
[1725528928951,0.41797,2392.6,2392.5,3.13186461]
[1725528929136,0.41797,2392.6,2392.5,3.54985461]
[1725528930146,0.41797,2392.6,2392.5,3.13186461]
[1725528931345,6.9633,2392.7,2392.6,0.41797]
[1725528932537,3.2078,2392.7,2392.6,3.54983461]
[1725528933245,3.62575,2392.7,2392.6,3.13186461]
[1725528933449,6.51575,2392.7,2392.6,3.54983461]
[1725528933749,6.51575,2392.7,2392.6,3.13186461]
[1725528933950,3.2078,2392.7,2392.6,3.54983461]
[1725528935246,3.2078,2392.7,2392.6,3.98093461]
[1725528935449,3.2078,2392.7,2392.6,4.43553461]
[1725528936238,3.2078,2392.7,2392.6,3.98093461]
[1725528937644,4.14738995,2405.7,2392.6,3.98093461]
[1725528937645,3.21406593,2393.4,2393.3,0.41785]
[1725528937843,3.21406593,2393.4,2393.3,3.54971461]
[1725528940449,0.00626593,2393.4,2393.3,3.54971461]
[1725528940648,6.0978,2394.3,2393.4,4.1776]
[1725528940859,6.0978,2394.3,2394.2,0.41769]
[1725528940860,3.2078,2394.3,2394.2,0.41769]
[1725528941847,1.32176593,2394.5,2394.3,0.41767]
[1725528942451,0.45326593,2394.5,2394.2,0.41768]
[1725528943543,0.00626593,2394.5,2394.4,0.41766]
[1725528943953,0.00626593,2394.5,2394.4,4.59366]
[1725528944960,0.00626593,2394.5,2394.4,0.41766]
[1725528945954,0.00626593,2394.5,2394.0,3.67356593]
[1725528946254,0.42391593,2394.5,2394.1,0.4177]
[1725528946454,2.89,2394.4,2394.0,0.46576593]
[1725528946656,0.4227,2394.3,2394.0,0.42397593]
[1725528946856,0.4227,2394.3,2394.2,0.41769]
[1725528947048,0.00626593,2394.5,2394.3,0.41767]
[1725528947447,0.00626593,2394.5,2394.4,0.41766]
[1725528949461,0.00626593,2394.5,2394.4,0.87976]
[1725528949767,0.00626593,2394.5,2394.3,0.85097]
[1725528950056,0.00626593,2394.5,2394.3,1.31307]
[1725528950358,0.00626593,2394.5,2394.3,0.8954]
[1725528950763,0.00626593,2394.5,2394.4,0.41766]
[1725528951163,0.00626593,2394.5,2394.3,1.31306]
[1725528951462,0.00626593,2394.5,2394.4,0.41766]
[1725528952368,17.73197686,2394.5,2394.0,0.00626593]
[1725528952660,2.89,2394.1,2394.0,0.00626593]
[1725528953165,7.0668,2394.1,2394.0,0.00626593]
[1725528953363,7.48451,2394.1,2394.0,0.00626593]
[1725528953563,13.48451,2394.1,2394.0,0.00626593]
[1725528953857,18.10622795,2394.1,2394.0,0.00626593]
[1725528954261,0.41776,2393.9,2393.3,0.41784]
[1725528954456,2.89,2393.7,2393.3,0.41784]
[1725528954664,2.89,2393.7,2393.4,0.41783]
[1725528955456,2.89,2393.7,2393.3,0.42410593]
[1725528955962,2.89,2393.7,2393.4,0.41783]
[1725528958955,2.89,2393.7,2393.3,0.00626593]
[1725528959364,0.4641,2393.6,2393.3,0.42411593]
[1725528960362,0.4641,2393.6,2393.4,0.41783]
[1725528960957,0.4641,2393.6,2393.3,0.00626593]
[1725528960958,0.4641,2393.6,2393.3,0.42410593]
[1725528961162,0.8819,2393.6,2393.3,0.42410593]
[1725528961669,0.8819,2393.6,2393.3,0.00626593]
[1725528961972,6.0978,2393.5,2393.3,0.00626593]
[1725528962266,0.41783,2393.4,2393.3,0.00626593]
[1725528962470,4.59623,2393.4,2393.3,0.00626593]
[1725528964671,10.59623,2393.4,2393.3,0.00626593]
[1725528964870,10.59623,2393.4,2392.8,3.62573]
[1725528964871,0.41792,2392.9,2392.6,0.4655]
[1725528965073,6.0978,2393.0,2392.5,0.41798]
[1725528965374,0.41796,2392.7,2392.5,0.41799]
[1725528965870,3.77874,2392.8,2392.6,0.41797]
[1725528966076,3.77874,2392.8,2392.5,0.42424593]
[1725528966571,2.89,2392.6,2392.5,0.00626593]
[1725528966977,7.48797,2392.6,2392.5,0.00626593]
[1725528967475,4.59797,2392.6,2392.5,0.00626593]
[1725528967671,0.41797,2392.6,2392.5,0.00626593]
[1725528967977,4.59797,2392.6,2392.5,0.00626593]
[1725528968271,0.41797,2392.6,2392.5,0.00626593]
[1725528968773,4.59797,2392.6,2392.5,0.00626593]
[1725528969566,8.99731465,2392.6,2392.5,0.00626593]
[1725528971667,8.57934465,2392.6,2392.5,0.00626593]
[1725528972080,8.99731465,2392.6,2392.5,0.00626593]
[1725528973079,6.51577,2392.7,2392.5,0.00626593]
[1725528974267,10.69497,2392.7,2392.5,0.00626593]
[1725528974472,0.41797,2392.6,2392.5,0.00626593]
[1725528975382,4.59797,2392.6,2392.5,0.00626593]
[1725528977080,0.41797,2392.6,2392.5,0.00626593]
[1725528979686,10.27795106,2392.6,2392.5,0.00626593]
[1725528979983,0.41814,2391.7,2391.5,0.41815]
[1725528980187,1.04504,2392.4,2390.5,5.29128001]
[1725528980188,1.04542,2391.5,2390.9,40.8]
[1725528980394,0.41822,2391.2,2391.0,0.41824]
[1725528980683,3.626,2391.3,2391.0,0.41824]
[1725528980894,2.89,2391.1,2390.9,0.00626593]
[1725528981080,0.41829,2390.8,2390.5,0.41833]
[1725528981275,2.89,2390.6,2390.4,0.41834]
[1725528981479,2.89,2390.6,2390.3,0.4942]
[1725528981785,2.89,2390.6,2390.3,0.91256]
[1725528981976,2.89,2390.6,2390.4,0.41835]
[1725528982178,2.89,2390.6,2390.5,0.41834]
[1725528982379,2.89,2390.6,2390.4,0.41835]
[1725528982583,2.89,2390.6,2390.5,0.41834]
[1725528982980,3.2078,2391.1,2390.3,0.49837726]
[1725528983182,2.89,2390.7,2390.5,0.41833]
[1725528983584,2.89,2390.7,2390.3,0.49837726]
[1725528983884,2.89,2390.7,2390.5,0.41833]
[1725528984789,2.89,2390.7,2390.3,0.49837726]
[1725528985088,3.2078,2390.8,2390.3,0.49837726]
[1725528985089,3.2078,2390.8,2390.7,0.4183]
[1725528985394,3.2078,2390.8,2390.6,0.41831]
[1725528985586,2.89,2390.7,2390.6,0.41831]
[1725528985980,3.2078,2390.8,2390.7,0.4183]
[1725528986482,3.2078,2390.8,2390.6,0.4183]
[1725528986483,7.3902,2390.8,2390.6,0.4183]
[1725528986679,2.89,2390.7,2390.6,0.4183]
[1725528987693,6.0978,2390.8,2390.7,0.4183]
[1725528987896,10.281,2390.8,2390.3,0.00417726]
[1725528988194,10.281,2390.8,2389.0,3.2078]
[1725528988195,6.0978,2390.4,2389.0,3.2078]
[1725528988383,2.89,2389.1,2389.0,3.2078]
[1725528988579,2.26192845,2389.1,2389.0,41.2186]
[1725528989292,2.89,2389.2,2389.1,0.41858]
[1725528989989,3.86626593,2389.3,2389.1,0.41858]
[1725528990187,3.86626593,2389.3,2389.2,0.41857]
[1725528990893,3.86,2389.7,2389.6,0.4185]
[1725528992284,3.86,2389.7,2389.5,0.8869]
[1725528992483,3.86,2389.7,2389.6,0.4185]
[1725528993690,3.86,2389.7,2389.5,0.4684]
[1725528993890,3.86,2389.7,2389.6,0.4185]
[1725528994684,3.86,2389.7,2389.5,0.8869]
[1725528994985,3.86,2389.7,2389.5,0.4684]
[1725528995683,3.2078,2389.6,2389.4,0.49586593]
[1725528996286,3.2078,2389.6,2389.4,0.00626593]
[1725528996287,3.86,2389.5,2389.4,0.00626593]
[1725528996682,12.41334713,2389.5,2389.4,0.00626593]
[1725528997886,3.2078,2389.6,2389.4,0.00626593]
[1725528998090,0.00626593,2389.9,2389.4,40.80626593]
[1725528998091,3.21406593,2389.9,2389.4,40.80626593]
[1725528998292,3.2078,2389.5,2389.4,0.00626593]
[1725528998884,7.0678,2389.5,2389.4,0.00626593]
[1725528999798,15.71570457,2389.5,2389.4,0.00626593]
[1725529000184,15.71570457,2389.5,2389.0,0.5039]
[1725529000185,0.41853,2389.4,2389.0,0.5039]
[1725529000390,3.2078,2389.2,2389.0,0.5039]
[1725529000691,3.2078,2389.2,2389.1,0.41858]
[1725529000894,7.0678,2389.5,2389.2,0.41855]
[1725529001205,4.39443594,2389.2,2388.0,3.2078]
[1725529001495,9.2078,2389.5,2386.9,3.2078]
[1725529001496,7.0678,2388.1,2386.9,3.2078]
[1725529001700,3.86,2388.6,2386.8,0.41898]
[1725529001701,3.2078,2387.2,2386.8,0.41898]
[1725529001890,3.86,2387.2,2386.5,0.4749]
[1725529002084,3.2078,2387.5,2386.5,3.6827]
[1725529002085,7.0678,2387.5,2386.5,3.6827]
[1725529002287,4.40958137,2387.1,2386.8,0.41898]
[1725529002491,0.41891,2387.3,2386.8,0.41898]
[1725529002692,7.0678,2387.5,2386.8,0.41898]
[1725529002888,4.40958137,2387.2,2387.1,0.41893]
[1725529003089,4.40958137,2387.4,2386.8,3.2078]
[1725529003289,3.86,2387.0,2386.6,0.41902]
[1725529003486,3.86,2387.0,2386.5,0.89393]
[1725529003686,3.86,2387.0,2386.5,0.4749]
[1725529003687,4.47628353,2386.9,2386.5,0.4749]
[1725529003893,3.86,2386.8,2386.1,3.2078]
[1725529004094,3.86,2386.8,2386.4,0.41905]
[1725529004311,4.49327352,2386.7,2386.5,0.41904]
[1725529004597,4.49327352,2386.7,2386.1,3.2078]
[1725529004598,4.49327352,2386.7,2386.6,0.41902]
[1725529004794,3.86,2386.8,2386.6,0.41902]
[1725529004997,3.2078,2386.9,2386.6,0.41901]
[1725529005193,3.86,2386.8,2386.5,0.41904]
[1725529005392,3.86,2386.6,2386.0,0.4673]
[1725529005587,3.86,2386.6,2386.5,0.41904]
[1725529006100,3.86,2386.8,2386.5,0.41904]
[1725529006602,8.30750594,2386.8,2386.5,0.41904]
[1725529006797,8.30750594,2386.8,2386.2,40.8]
[1725529006986,0.9179,2388.0,2386.2,40.8]
[1725529006987,3.2078,2387.3,2387.2,0.41892]
[1725529007190,0.2063276,2388.6,2387.0,4.25519]
[1725529007191,3.2078,2387.8,2387.0,4.25519]
[1725529007498,3.2078,2387.8,2387.0,3.2078]
[1725529007691,3.2078,2387.8,2387.6,0.41885]
[1725529008295,3.86,2388.1,2387.6,4.188]
[1725529008491,3.86,2388.1,2387.3,3.2078]
[1725529008697,8.62131114,2388.1,2387.3,3.2078]
[1725529008998,3.86,2388.1,2387.9,0.41879]
[1725529009196,3.86,2388.1,2387.3,3.2078]
[1725529009503,0.00627943,2387.9,2387.8,0.41881]
[1725529010002,3.2078,2388.3,2388.0,0.41878]
[1725529010299,3.86,2388.4,2387.6,0.4648]
[1725529010598,3.6733,2388.7,2387.9,1.04699]
[1725529010599,3.2078,2388.7,2387.9,1.04699]
[1725529010805,7.0678,2389.1,2388.8,0.41864]
[1725529010992,7.0678,2389.1,2388.8,0.41862]
[1725529011491,0.00627943,2389.2,2389.1,0.41858]
[1725529011802,0.00627943,2389.2,2389.1,3.62638]
[1725529012002,0.00627943,2389.2,2389.1,13.81198]
[1725529012300,3.86,2389.9,2389.1,54.1934]
[1725529012505,7.0678,2389.9,2389.1,44.0078]
[1725529012696,3.2078,2389.9,2389.5,0.4185]
[1725529012901,3.2078,2389.9,2389.7,0.41848]
[1725529013100,3.2078,2389.9,2389.6,0.41849]
[1725529013395,0.00627943,2389.7,2389.6,0.41849]
[1725529013899,0.00627943,2389.7,2389.6,4.60329]
[1725529014607,11.67736943,2389.7,2389.1,40.8]
[1725529014799,11.58192971,2389.7,2389.1,40.8]
[1725529014997,7.07407943,2389.7,2389.1,40.8]
[1725529015202,7.07407943,2389.7,2388.7,3.21407943]
[1725529015203,7.0678,2389.4,2388.7,0.00627943]
[1725529015607,4.6941348,2389.3,2388.7,0.00627943]
[1725529015801,7.0678,2389.1,2388.7,0.00627943]
[1725529016003,0.4186,2389.0,2388.7,0.00627943]
[1725529016311,3.2078,2389.1,2388.7,0.00627943]
[1725529017200,3.2078,2389.1,2388.8,0.41863]
[1725529017707,3.2078,2389.5,2388.9,7.3934]
[1725529017902,1.04588,2390.5,2388.9,7.3934]
[1725529017903,3.2078,2390.1,2389.2,0.41855]
[1725529018098,3.2078,2389.8,2388.7,0.00627943]
[1725529018306,3.62626,2389.8,2389.1,0.41857]
[1725529018503,3.2078,2389.8,2388.8,3.2078]
[1725529018705,3.2078,2389.8,2389.3,0.41854]